fUSD/lending_fUSD_20260614
["ID","MTS","AMOUNT","RATE_DAILY","PERIOD"]
[425059827,1781447542000,-500.0,0.0003041,8]
[425059810,1781447542000,-500.0,0.0003041,8]
[425059808,1781447542000,-608.15,0.0003041,8]
[425059809,1781447542000,-1189.57,0.0003041,8]
[425059857,1781447542000,-500.0,0.0003041,8]
[425059817,1781447542000,-672.85,0.0003041,8]
[425059814,1781447542000,-1452.09,0.0003041,8]
[425059815,1781447542000,-500.0,0.0003041,8]
[425059818,1781447542000,-1053.08,0.0003041,8]
[425059813,1781447542000,-500.0,0.0003041,8]
[425059816,1781447542000,-500.0,0.0003041,8]
[425059831,1781447542000,-500.0,0.0003041,8]
[425059812,1781447542000,-500.0,0.0003041,8]
[425059826,1781447542000,-500.0,0.0003041,8]
[425059821,1781447542000,-500.0,0.0003041,8]
[425059824,1781447542000,-1281.05,0.0003041,8]
[425059820,1781447542000,-500.0,0.0003041,8]
[425059819,1781447542000,-500.0,0.0003041,8]
[425059822,1781447542000,-500.0,0.0003041,8]
[425059823,1781447542000,-500.0,0.0003041,8]
[425059828,1781447542000,-500.0,0.0003041,8]
[425059832,1781447542000,-1015.25,0.0003041,8]
[425059834,1781447542000,-500.0,0.0003041,8]
[425059825,1781447542000,-532.02,0.0003041,8]
[425059852,1781447542000,-1195.63,0.0003041,8]
[425059856,1781447542000,-331.08976287,0.0003041,8]
[425059899,1781447542000,-500.0,0.0003041,8]
[425059881,1781447542000,-556.37,0.0003041,8]
[425059892,1781447542000,-500.0,0.0003041,8]
[425059887,1781447542000,-500.0,0.0003041,8]
[425059889,1781447542000,-500.0,0.0003041,8]
[425059886,1781447542000,-520.69,0.0003041,8]
[425059888,1781447542000,-648.3,0.0003041,8]
[425059893,1781447542000,-500.0,0.0003041,8]
[425059895,1781447542000,-543.72,0.0003041,8]
[425059894,1781447542000,-1022.53,0.0003041,8]
[425059896,1781447542000,-597.42,0.0003041,8]
[425059883,1781447542000,-790.09,0.0003041,8]
[425059905,1781447542000,-1746.88,0.0003041,8]
[425059898,1781447542000,-573.76,0.0003041,8]
[425059897,1781447542000,-1193.0,0.0003041,8]
[425059901,1781447542000,-1254.7,0.0003041,8]
[425059904,1781447542000,-723.54,0.0003041,8]
[425059902,1781447542000,-689.06,0.0003041,8]
[425059860,1781447542000,-1132.03,0.0003041,8]
[425059907,1781447542000,-450.94804614,0.0003041,8]
[425059910,1781447542000,-500.0,0.0003041,8]
[425059906,1781447542000,-500.0,0.0003041,8]
[425059908,1781447542000,-784.28,0.0003041,8]
[425059900,1781447542000,-500.0,0.0003041,8]
[425059891,1781447542000,-500.0,0.0003041,8]
[425059903,1781447542000,-500.0,0.0003041,8]
[425059885,1781447542000,-500.0,0.0003041,8]
[425059862,1781447542000,-607.25,0.0003041,8]
[425059859,1781447542000,-500.0,0.0003041,8]
[425059884,1781447542000,-534.02,0.0003041,8]
[425059863,1781447542000,-500.0,0.0003041,7]
[425059865,1781447542000,-510.28,0.0003041,8]
[425059866,1781447542000,-500.0,0.0003041,8]
[425059868,1781447542000,-500.0,0.0003041,8]
[425059864,1781447542000,-638.31,0.0003041,8]
[425059867,1781447542000,-500.0,0.0003041,8]
[425059869,1781447542000,-806.88,0.0003041,8]
[425059870,1781447542000,-500.0,0.0003041,8]
[425059873,1781447542000,-500.0,0.0003041,8]
[425059861,1781447542000,-554.77,0.0003041,8]
[425059872,1781447542000,-544.6,0.0003041,8]
[425059874,1781447542000,-2153.84,0.0003041,8]
[425059890,1781447542000,-287.01004118,0.0003041,8]
[425059880,1781447542000,-500.0,0.0003041,8]
[425059879,1781447542000,-815.68,0.0003041,8]
[425059878,1781447542000,-500.0,0.0003041,8]
[425059882,1781447542000,-500.0,0.0003041,8]
[425059877,1781447542000,-500.0,0.0003041,8]
[425059871,1781447542000,-853.99,0.0003041,8]
[425059875,1781447542000,-866.85,0.0003041,8]
[425059876,1781447542000,-500.0,0.0003041,8]
[425059942,1781447543000,-500.0,0.0003041,8]
[425059935,1781447543000,-500.0,0.0003041,8]
[425059936,1781447543000,-566.53,0.0003041,8]
[425059940,1781447543000,-500.0,0.0003041,8]
[425059934,1781447543000,-892.45,0.0003041,8]
[425059937,1781447543000,-500.0,0.0003041,8]
[425059938,1781447543000,-500.0,0.0003041,8]
[425059941,1781447543000,-714.38,0.0003041,8]
[425059944,1781447543000,-1199.94,0.0003041,8]
[425059948,1781447543000,-1220.66,0.0003041,8]
[425059943,1781447543000,-529.52,0.0003041,8]
[425059946,1781447543000,-611.86,0.0003041,8]
[425059947,1781447543000,-500.0,0.0003041,8]
[425059949,1781447543000,-1992.83,0.0003041,8]
[425059952,1781447543000,-500.0,0.0003041,8]
[425059954,1781447543000,-500.0,0.0003041,8]
[425059950,1781447543000,-500.0,0.0003041,8]
[425059939,1781447543000,-508.16952918,0.0003041,8]
[425059945,1781447543000,-536.09,0.0003041,8]
[425059933,1781447543000,-1046.11,0.0003041,8]
[425059951,1781447543000,-1285.7,0.0003041,8]
[425059931,1781447543000,-533.2,0.0003041,8]
[425059917,1781447543000,-1337.092731,0.0003041,7]
[425059913,1781447543000,-500.0,0.0003041,8]
[425059912,1781447543000,-500.0,0.0003041,8]
[425059915,1781447543000,-1337.092731,0.0003041,7]
[425059914,1781447543000,-1337.092731,0.0003041,7]
[425059916,1781447543000,-1337.092731,0.0003041,7]
[425059918,1781447543000,-1337.092731,0.0003041,7]
[425059919,1781447543000,-1337.092731,0.0003041,7]
[425059923,1781447543000,-500.0,0.0003041,8]
[425059920,1781447543000,-1337.092731,0.0003041,7]
[425059924,1781447543000,-1337.092731,0.0003041,7]
[425059922,1781447543000,-1337.092731,0.0003041,7]
[425059921,1781447543000,-1337.092731,0.0003041,7]
[425059925,1781447543000,-1337.092731,0.0003041,7]
[425059926,1781447543000,-500.0,0.0003041,8]
[425059927,1781447543000,-1337.092725,0.0003041,7]
[425059928,1781447543000,-639.31,0.0003041,8]
[425059930,1781447543000,-504.6,0.0003041,8]
[425059932,1781447543000,-715.69,0.0003041,8]
[425059929,1781447543000,-623.88,0.0003041,8]
[425059953,1781447543000,-694.6,0.0003041,8]
[425059997,1781447543000,-500.0,0.0003041,8]
[425059955,1781447543000,-500.0,0.0003041,8]
[425059976,1781447543000,-500.0,0.0003041,8]
[425059981,1781447543000,-325.40379603,0.0003041,8]
[425059985,1781447543000,-1214.87,0.0003041,8]
[425059982,1781447543000,-500.0,0.0003041,8]
[425059983,1781447543000,-500.0,0.0003041,8]
[425059984,1781447543000,-1362.07,0.0003041,8]
[425059986,1781447543000,-712.15,0.0003041,8]
[425059989,1781447543000,-500.0,0.0003041,8]
[425059978,1781447543000,-752.56,0.0003041,8]
[425059993,1781447543000,-216.66860586,0.0003041,8]
[425059991,1781447543000,-556.38,0.0003041,8]
[425059988,1781447543000,-500.0,0.0003041,8]
[425059987,1781447543000,-658.12,0.0003041,8]
[425059995,1781447543000,-500.0,0.0003041,8]
[425059994,1781447543000,-1530.48,0.0003041,8]
[425059996,1781447543000,-500.0,0.0003041,8]
[425059998,1781447543000,-836.13,0.0003041,8]
[425059956,1781447543000,-500.0,0.0003041,8]
[425059992,1781447543000,-932.78,0.0003041,8]
[425059977,1781447543000,-1794.38,0.0003041,8]
[425059990,1781447543000,-710.6,0.0003041,8]
[425059974,1781447543000,-1086.15,0.0003041,8]
[425059958,1781447543000,-694.97,0.0003041,8]
[425059975,1781447543000,-500.0,0.0003041,8]
[425059959,1781447543000,-577.76,0.0003041,8]
[425059960,1781447543000,-638.67,0.0003041,8]
[425059957,1781447543000,-500.0,0.0003041,8]
[425059962,1781447543000,-1019.53,0.0003041,8]
[425059969,1781447543000,-648.66,0.0003041,8]
[425059963,1781447543000,-293.20889488,0.0003041,8]
[425059964,1781447543000,-500.0,0.0003041,8]
[425059961,1781447543000,-681.48,0.0003041,8]
[425059968,1781447543000,-500.0,0.0003041,8]
[425059965,1781447543000,-500.0,0.0003041,8]
[425059966,1781447543000,-770.14,0.0003041,8]
[425059970,1781447543000,-1236.08,0.0003041,8]
[425059979,1781447543000,-500.0,0.0003041,8]
[425059980,1781447543000,-500.0,0.0003041,8]
[425059971,1781447543000,-500.0,0.0003041,8]
[425059973,1781447543000,-270.42714195,0.0003041,8]
[425059967,1781447543000,-606.2,0.0003041,8]
[425059972,1781447543000,-500.0,0.0003041,8]
[425060036,1781447544000,-500.0,0.0003041,8]
[425060032,1781447544000,-675.87,0.0003041,8]
[425060037,1781447544000,-642.31,0.0003041,8]
[425060035,1781447544000,-881.04,0.0003041,8]
[425060034,1781447544000,-1042.52,0.0003041,8]
[425060031,1781447544000,-944.34,0.0003041,8]
[425060033,1781447544000,-500.0,0.0003041,8]
[425060030,1781447544000,-500.0,0.0003041,8]
[425060028,1781447544000,-1514.46,0.0003041,8]
[425060040,1781447544000,-845.18,0.0003041,8]
[425060029,1781447544000,-663.09,0.0003041,8]
[425060038,1781447544000,-702.19,0.0003041,8]
[425060051,1781447544000,-500.0,0.0003041,8]
[425060050,1781447544000,-1150.58,0.0003041,8]
[425060044,1781447544000,-729.66,0.0003041,8]
[425060042,1781447544000,-500.0,0.0003041,8]
[425060047,1781447544000,-500.0,0.0003041,8]
[425060046,1781447544000,-500.0,0.0003041,8]
[425060045,1781447544000,-815.38,0.0003041,8]
[425060043,1781447544000,-500.0,0.0003041,8]
[425060048,1781447544000,-500.0,0.0003041,8]
[425060049,1781447544000,-500.0,0.0003041,8]
[425060063,1781447544000,-500.0,0.0003041,8]
[425060064,1781447544000,-500.0,0.0003041,8]
[425060054,1781447544000,-500.0,0.0003041,8]
[425060039,1781447544000,-500.0,0.0003041,8]
[425060041,1781447544000,-631.21,0.0003041,8]
[425060027,1781447544000,-657.3,0.0003041,8]
[425060006,1781447544000,-500.0,0.0003041,8]
[425060024,1781447544000,-500.0,0.0003041,8]
[425060056,1781447544000,-564.84,0.0003041,8]
[425060004,1781447544000,-500.0,0.0003041,8]
[425060003,1781447544000,-500.0,0.0003041,8]
[425060005,1781447544000,-987.41,0.0003041,8]
[425060000,1781447544000,-500.0,0.0003041,8]
[425060001,1781447544000,-1329.36,0.0003041,8]
[425060002,1781447544000,-578.24,0.0003041,8]
[425059999,1781447544000,-500.0,0.0003041,8]
[425060008,1781447544000,-500.0,0.0003041,8]
[425060010,1781447544000,-747.07,0.0003041,8]
[425060011,1781447544000,-500.0,0.0003041,8]
[425060009,1781447544000,-500.0,0.0003041,8]
[425060023,1781447544000,-500.0,0.0003041,8]
[425060012,1781447544000,-1199.11,0.0003041,8]
[425060007,1781447544000,-500.0,0.0003041,8]
[425060014,1781447544000,-500.0,0.0003041,8]
[425060015,1781447544000,-1016.47,0.0003041,8]
[425060013,1781447544000,-579.71,0.0003041,8]
[425060017,1781447544000,-1038.13,0.0003041,8]
[425060019,1781447544000,-500.0,0.0003041,8]
[425060018,1781447544000,-519.48,0.0003041,8]
[425060022,1781447544000,-565.44,0.0003041,8]
[425060020,1781447544000,-856.87,0.0003041,8]
[425060021,1781447544000,-597.59,0.0003041,8]
[425060025,1781447544000,-1068.73,0.0003041,8]
[425060026,1781447544000,-500.0,0.0003041,8]
[425060016,1781447544000,-500.0,0.0003041,8]
[425060052,1781447544000,-500.0,0.0003041,8]
[425060072,1781447544000,-500.0,0.0003041,8]
[425060053,1781447544000,-532.23,0.0003041,8]
[425060089,1781447544000,-1661.43,0.0003041,8]
[425060092,1781447544000,-553.44,0.0003041,8]
[425060090,1781447544000,-743.01,0.0003041,8]
[425060091,1781447544000,-184.13727645,0.0003041,8]
[425060100,1781447544000,-500.0,0.0003041,8]
[425060094,1781447544000,-920.43,0.0003041,8]
[425060093,1781447544000,-500.0,0.0003041,8]
[425060099,1781447544000,-605.61,0.0003041,8]
[425060096,1781447544000,-509.71,0.0003041,8]
[425060097,1781447544000,-662.85,0.0003041,8]
[425060098,1781447544000,-225.17461516,0.0003041,8]
[425060095,1781447544000,-500.0,0.0003041,8]
[425060081,1781447544000,-500.0,0.0003041,8]
[425060112,1781447544000,-1169.04,0.0003041,8]
[425060101,1781447544000,-698.01,0.0003041,8]
[425060103,1781447544000,-500.0,0.0003041,8]
[425060104,1781447544000,-500.0,0.0003041,8]
[425060105,1781447544000,-500.0,0.0003041,8]
[425060108,1781447544000,-1701.25,0.0003041,8]
[425060109,1781447544000,-500.0,0.0003041,8]
[425060106,1781447544000,-500.0,0.0003041,8]
[425060110,1781447544000,-592.38,0.0003041,8]
[425060107,1781447544000,-674.5,0.0003041,8]
[425060111,1781447544000,-500.0,0.0003041,8]
[425060113,1781447544000,-558.94,0.0003041,8]
[425060115,1781447544000,-500.0,0.0003041,8]
[425060102,1781447544000,-2667.75,0.0003041,8]
[425060084,1781447544000,-500.0,0.0003041,8]
[425060062,1781447544000,-349.82184574,0.0003041,8]
[425060082,1781447544000,-500.0,0.0003041,8]
[425060055,1781447544000,-657.48,0.0003041,8]
[425060061,1781447544000,-835.21,0.0003041,8]
[425060057,1781447544000,-500.0,0.0003041,8]
[425060058,1781447544000,-648.15,0.0003041,8]
[425060059,1781447544000,-500.0,0.0003041,8]
[425060060,1781447544000,-2000.0,0.0003041,2]
[425060066,1781447544000,-500.0,0.0003041,8]
[425060083,1781447544000,-870.51,0.0003041,8]
[425060073,1781447544000,-500.0,0.0003041,8]
[425060071,1781447544000,-419.46678396,0.0003041,8]
[425060074,1781447544000,-500.0,0.0003041,8]
[425060065,1781447544000,-880.78,0.0003041,8]
[425060075,1781447544000,-869.12,0.0003041,8]
[425060067,1781447544000,-616.02,0.0003041,8]
[425060069,1781447544000,-3014.18,0.0003041,8]
[425060068,1781447544000,-500.0,0.0003041,8]
[425060080,1781447544000,-1539.52,0.0003041,8]
[425060078,1781447544000,-500.0,0.0003041,8]
[425060076,1781447544000,-992.68,0.0003041,8]
[425060086,1781447544000,-500.0,0.0003041,8]
[425060079,1781447544000,-3250.13,0.0003041,8]
[425060088,1781447544000,-540.29,0.0003041,8]
[425060077,1781447544000,-1461.98,0.0003041,8]
[425060085,1781447544000,-500.0,0.0003041,8]
[425060070,1781447544000,-500.0,0.0003041,8]
[425060114,1781447544000,-500.0,0.0003041,8]
[425060087,1781447544000,-692.78,0.0003041,8]
[425060152,1781447545000,-1056.35,0.0003041,8]
[425060156,1781447545000,-500.0,0.0003041,8]
[425060155,1781447545000,-940.15,0.0003041,8]
[425060153,1781447545000,-500.0,0.0003041,8]
[425060148,1781447545000,-500.0,0.0003041,8]
[425060144,1781447545000,-1427.79,0.0003041,8]
[425060159,1781447545000,-500.0,0.0003041,8]
[425060150,1781447545000,-877.23,0.0003041,8]
[425060149,1781447545000,-500.0,0.0003041,8]
[425060145,1781447545000,-5751.63,0.0003041,8]
[425060151,1781447545000,-546.64,0.0003041,8]
[425060154,1781447545000,-500.0,0.0003041,8]
[425060170,1781447545000,-500.0,0.0003041,8]
[425060157,1781447545000,-267.18455351,0.0003041,8]
[425060160,1781447545000,-679.83,0.0003041,8]
[425060162,1781447545000,-500.0,0.0003041,8]
[425060163,1781447545000,-500.0,0.0003041,8]
[425060164,1781447545000,-1116.26,0.0003041,8]
[425060161,1781447545000,-1143.85,0.0003041,8]
[425060166,1781447545000,-500.0,0.0003041,8]
[425060165,1781447545000,-825.79,0.0003041,8]
[425060171,1781447545000,-4182.59,0.0003041,8]
[425060167,1781447545000,-626.04,0.0003041,8]
[425060168,1781447545000,-704.65,0.0003041,8]
[425060172,1781447545000,-702.05,0.0003041,8]
[425060143,1781447545000,-500.0,0.0003041,8]
[425060158,1781447545000,-10759.52,0.0003041,8]
[425060142,1781447545000,-500.0,0.0003041,8]
[425060128,1781447545000,-2663.08,0.0003041,8]
[425060146,1781447545000,-500.0,0.0003041,8]
[425060169,1781447545000,-1082.98,0.0003041,8]
[425060116,1781447545000,-605.88,0.0003041,8]
[425060117,1781447545000,-720.7,0.0003041,8]
[425060124,1781447545000,-500.0,0.0003041,8]
[425060118,1781447545000,-702.01,0.0003041,8]
[425060120,1781447545000,-502.0,0.0003041,8]
[425060122,1781447545000,-682.04,0.0003041,8]
[425060119,1781447545000,-500.0,0.0003041,8]
[425060121,1781447545000,-2238.28,0.0003041,8]
[425060123,1781447545000,-500.0,0.0003041,8]
[425060126,1781447545000,-966.37,0.0003041,8]
[425060136,1781447545000,-842.22,0.0003041,8]
[425060140,1781447545000,-1675.9,0.0003041,8]
[425060125,1781447545000,-500.0,0.0003041,8]
[425060127,1781447545000,-500.0,0.0003041,8]
[425060130,1781447545000,-580.54,0.0003041,8]
[425060131,1781447545000,-623.6,0.0003041,8]
[425060132,1781447545000,-500.0,0.0003041,8]
[425060133,1781447545000,-550.82,0.0003041,8]
[425060134,1781447545000,-500.0,0.0003041,8]
[425060135,1781447545000,-1157.66,0.0003041,8]
[425060137,1781447545000,-543.63,0.0003041,8]
[425060139,1781447545000,-500.0,0.0003041,8]
[425060141,1781447545000,-703.84,0.0003041,8]
[425060147,1781447545000,-500.0,0.0003041,8]
[425060138,1781447545000,-500.0,0.0003041,8]
[425060129,1781447545000,-2017.64,0.0003041,8]
[425060174,1781447545000,-500.0,0.0003041,8]
[425060184,1781447545000,-500.0,0.0003041,8]
[425060175,1781447545000,-3026.85,0.0003041,8]
[425060203,1781447545000,-1278.35,0.0003041,8]
[425060205,1781447545000,-11664.09,0.0003041,8]
[425060210,1781447545000,-505.16,0.0003041,8]
[425060212,1781447545000,-500.0,0.0003041,8]
[425060220,1781447545000,-500.0,0.0003041,8]
[425060214,1781447545000,-2026.58,0.0003041,8]
[425060221,1781447545000,-1828.15,0.0003041,8]
[425060219,1781447545000,-1801.16,0.0003041,8]
[425060217,1781447545000,-557.28,0.0003041,8]
[425060216,1781447545000,-1296.71,0.0003041,8]
[425060218,1781447545000,-2890.54,0.0003041,8]
[425060211,1781447545000,-500.0,0.0003041,8]
[425060215,1781447545000,-589.03,0.0003041,8]
[425060223,1781447545000,-1343.56,0.0003041,8]
[425060225,1781447545000,-1214.13,0.0003041,8]
[425060224,1781447545000,-1463.18,0.0003041,8]
[425060222,1781447545000,-500.0,0.0003041,8]
[425060226,1781447545000,-595.31,0.0003041,8]
[425060227,1781447545000,-500.0,0.0003041,8]
[425060229,1781447545000,-500.0,0.0003041,8]
[425060228,1781447545000,-1866.64,0.0003041,8]
[425060230,1781447545000,-500.0,0.0003041,8]
[425060231,1781447545000,-577.98,0.0003041,8]
[425060233,1781447545000,-500.0,0.0003041,8]
[425060232,1781447545000,-1413.1,0.0003041,8]
[425060234,1781447545000,-5973.16,0.0003041,8]
[425060173,1781447545000,-500.0,0.0003041,8]
[425060202,1781447545000,-500.0,0.0003041,8]
[425060207,1781447545000,-500.0,0.0003041,8]
[425060213,1781447545000,-500.0,0.0003041,8]
[425060201,1781447545000,-1407.31,0.0003041,8]
[425060204,1781447545000,-500.0,0.0003041,8]
[425060177,1781447545000,-500.0,0.0003041,8]
[425060182,1781447545000,-528.8,0.0003041,8]
[425060178,1781447545000,-2931.64,0.0003041,8]
[425060181,1781447545000,-742.57,0.0003041,8]
[425060180,1781447545000,-500.0,0.0003041,8]
[425060179,1781447545000,-500.0,0.0003041,8]
[425060183,1781447545000,-3706.06,0.0003041,8]
[425060185,1781447545000,-518.74,0.0003041,8]
[425060187,1781447545000,-500.0,0.0003041,8]
[425060186,1781447545000,-658.84,0.0003041,8]
[425060188,1781447545000,-1682.54,0.0003041,8]
[425060189,1781447545000,-500.0,0.0003041,8]
[425060196,1781447545000,-4001.43,0.0003041,8]
[425060176,1781447545000,-500.0,0.0003041,8]
[425060209,1781447545000,-677.78,0.0003041,8]
[425060195,1781447545000,-1109.22,0.0003041,8]
[425060193,1781447545000,-528.7,0.0003041,8]
[425060194,1781447545000,-540.32,0.0003041,8]
[425060190,1781447545000,-610.83,0.0003041,8]
[425060192,1781447545000,-636.66,0.0003041,8]
[425060197,1781447545000,-1749.66,0.0003041,8]
[425060198,1781447545000,-1000.0,0.0003041,8]
[425060208,1781447545000,-25282.9,0.0003041,8]
[425060191,1781447545000,-1282.28,0.0003041,8]
[425060200,1781447545000,-1023.6,0.0003041,8]
[425060206,1781447545000,-563.46,0.0003041,8]
[425060199,1781447545000,-508.2,0.0003041,8]
[425060279,1781447546000,-1648.13,0.0003041,8]
[425060275,1781447546000,-640.65,0.0003041,8]
[425060263,1781447546000,-500.0,0.0003041,8]
[425060276,1781447546000,-1599.83,0.0003041,8]
[425060269,1781447546000,-649.93,0.0003041,8]
[425060274,1781447546000,-707.22,0.0003041,8]
[425060260,1781447546000,-900.28,0.0003041,8]
[425060271,1781447546000,-1057.08,0.0003041,8]
[425060273,1781447546000,-500.0,0.0003041,8]
[425060270,1781447546000,-500.0,0.0003041,8]
[425060268,1781447546000,-1297.07,0.0003041,8]
[425060280,1781447546000,-577.21,0.0003041,8]
[425060277,1781447546000,-5289.14,0.0003041,8]
[425060272,1781447546000,-1326.3,0.0003041,8]
[425060288,1781447546000,-500.0,0.0003041,8]
[425060281,1781447546000,-861.57,0.0003041,8]
[425060284,1781447546000,-2104.15,0.0003041,8]
[425060283,1781447546000,-500.0,0.0003041,8]
[425060293,1781447546000,-1133.48,0.0003041,8]
[425060291,1781447546000,-500.0,0.0003041,8]
[425060287,1781447546000,-500.0,0.0003041,8]
[425060292,1781447546000,-500.0,0.0003041,8]
[425060282,1781447546000,-500.0,0.0003041,8]
[425060289,1781447546000,-921.05,0.0003041,8]
[425060285,1781447546000,-1609.77,0.0003041,8]
[425060286,1781447546000,-800.7,0.0003041,8]
[425060290,1781447546000,-500.0,0.0003041,8]
[425060278,1781447546000,-955.12,0.0003041,8]
[425060262,1781447546000,-12728.02,0.0003041,8]
[425060240,1781447546000,-2562.95,0.0003041,8]
[425060265,1781447546000,-620.82743743,0.0003041,8]
[425060294,1781447546000,-922.21,0.0003041,8]
[425060241,1781447546000,-500.0,0.0003041,8]
[425060242,1781447546000,-1440.23,0.0003041,8]
[425060243,1781447546000,-605.58,0.0003041,8]
[425060237,1781447546000,-500.0,0.0003041,8]
[425060238,1781447546000,-3655.13,0.0003041,8]
[425060239,1781447546000,-3216.2,0.0003041,8]
[425060235,1781447546000,-763.45,0.0003041,8]
[425060236,1781447546000,-1090.91,0.0003041,8]
[425060244,1781447546000,-1108.18,0.0003041,8]
[425060248,1781447546000,-2020.73,0.0003041,8]
[425060246,1781447546000,-500.0,0.0003041,8]
[425060247,1781447546000,-500.0,0.0003041,8]
[425060259,1781447546000,-707.83,0.0003041,8]
[425060249,1781447546000,-1129.02,0.0003041,2]
[425060254,1781447546000,-500.0,0.0003041,8]
[425060252,1781447546000,-1357.49,0.0003041,8]
[425060251,1781447546000,-500.0,0.0003041,8]
[425060250,1781447546000,-500.0,0.0003041,8]
[425060253,1781447546000,-878.66,0.0003041,8]
[425060257,1781447546000,-589.45319938,0.0003041,8]
[425060258,1781447546000,-839.66,0.0003041,8]
[425060267,1781447546000,-500.0,0.0003041,8]
[425060255,1781447546000,-529.83,0.0003041,8]
[425060256,1781447546000,-325.35942081,0.0003041,8]
[425060266,1781447546000,-2061.13,0.0003041,8]
[425060261,1781447546000,-822.75,0.0003041,8]
[425060264,1781447546000,-500.0,0.0003041,8]
[425060245,1781447546000,-500.0,0.0003041,8]
[425060296,1781447546000,-500.0,0.0003041,8]
[425060357,1781447546000,-500.0,0.00030684,8]
[425060298,1781447546000,-837.18,0.0003041,8]
[425060327,1781447546000,-427.44568912,0.00030589,7]
[425060330,1781447546000,-22500.0,0.00030625,2]
[425060333,1781447546000,-22500.0,0.00030625,2]
[425060335,1781447546000,-3249.37,0.00030667,2]
[425060345,1781447546000,-500.0,0.00030684,8]
[425060337,1781447546000,-667.37624602,0.00030683,8]
[425060336,1781447546000,-667.37624602,0.00030683,8]
[425060338,1781447546000,-1928.24,0.00030684,8]
[425060334,1781447546000,-1791.15813918,0.00030656,2]
[425060339,1781447546000,-2287.07,0.00030684,8]
[425060340,1781447546000,-500.0,0.00030684,8]
[425060341,1781447546000,-569.09,0.00030684,8]
[425060343,1781447546000,-706.5,0.00030684,8]
[425060324,1781447546000,-1187.43159699,0.00030589,7]
[425060344,1781447546000,-957.59,0.00030684,8]
[425060347,1781447546000,-500.0,0.00030684,8]
[425060349,1781447546000,-1013.37,0.00030684,8]
[425060358,1781447546000,-552.72,0.00030684,8]
[425060346,1781447546000,-510.86,0.00030684,8]
[425060348,1781447546000,-500.0,0.00030684,8]
[425060350,1781447546000,-500.0,0.00030684,8]
[425060352,1781447546000,-630.1,0.00030684,8]
[425060353,1781447546000,-558.29,0.00030684,8]
[425060355,1781447546000,-1526.43,0.00030684,8]
[425060351,1781447546000,-512.97,0.00030684,8]
[425060354,1781447546000,-925.25,0.00030684,8]
[425060297,1781447546000,-500.0,0.0003041,8]
[425060359,1781447546000,-1280.28,0.00030684,8]
[425060342,1781447546000,-1290.4,0.00030684,8]
[425060329,1781447546000,-644.12,0.00030613,2]
[425060356,1781447546000,-241.36160042,0.00030684,8]
[425060326,1781447546000,-359.19805809,0.00030589,7]
[425060322,1781447546000,-1628.14,0.0003053,2]
[425060295,1781447546000,-500.0,0.0003041,8]
[425060302,1781447546000,-1698.66,0.0003041,8]
[425060303,1781447546000,-500.0,0.0003041,8]
[425060304,1781447546000,-500.0,0.0003041,8]